[Event "44th Chess Olympiad Open 2022"]
[Site "Chennai"]
[Date "2022.07.30"]
[Round "2.75"]
[White "Alhassadi, Yousef A."]
[Black "Brookfield, Toby"]
[Result "1-0"]
[WhiteElo "2068"]
[BlackElo "1815"]
[Annotator "NA RC"]
[PlyCount "93"]
[EventDate "2022.??.??"]
[TimeControl "60"]

1. e4 {[%emt 0:00:03]} c5 {[%emt 0:00:05]} 2. c3 {[%emt 0:00:22]} d6 {[%emt 0:
00:00]} 3. d4 {[%emt 0:00:06]} Nf6 {[%emt 0:00:54]} 4. Bd3 {[%emt 0:01:32]} Nc6
{[%emt 0:01:05]} 5. Nf3 {[%emt 0:12:09]} cxd4 {[%emt 0:01:25]} 6. cxd4 {
[%emt 0:00:05]} g6 {[%emt 0:00:39]} 7. h3 {[%emt 0:00:22]} Bg7 {[%emt 0:00:06]}
8. Nc3 {[%emt 0:00:06]} O-O {[%emt 0:00:28]} 9. Be3 {[%emt 0:00:04]} e5 {
[%emt 0:07:00]} 10. d5 {[%emt 0:01:26]} Nd4 {[%emt 0:03:33]} 11. Nxd4 {[%emt 0:
00:00]} exd4 {[%emt 0:00:08]} 12. Bxd4 {[%emt 0:00:03]} Nh5 {[%emt 0:12:14]}
13. Bxg7 {[%emt 0:06:42]} Kxg7 {[%emt 0:00:09]} 14. Qd2 {[%emt 0:00:51]} Re8 {
[%emt 0:04:21]} 15. O-O {[%emt 0:06:58]} Qh4 {[%emt 0:03:11]} 16. Ne2 {[%emt 0:
00:00]} Nf6 {[%emt 0:06:25]} 17. f3 {[%emt 0:03:49]} Nh5 {[%emt 0:06:55]} 18.
Qe1 {[%emt 0:00:59]} Qe7 {[%emt 0:01:13]} 19. Rc1 {[%emt 0:01:41]} Nf6 {
[%emt 0:07:09]} 20. Nd4 {[%emt 0:02:42]} a6 {[%emt 0:04:05]} 21. Qd2 {[%emt 0:
00:00]} Qe5 {[%emt 0:03:43]} 22. Bb1 {[%emt 0:01:54]} Nh5 {[%emt 0:01:40]} 23.
f4 {[%emt 0:02:25]} Qe7 {[%emt 0:02:31]} 24. Nf3 {[%emt 0:00:53]} Nf6 {[%emt 0:
00:00]} 25. Qd4 {[%emt 0:00:11]} Kg8 {[%emt 0:01:25]} 26. e5 {[%emt 0:00:17]}
Nh5 {[%emt 0:02:29]} 27. Rfe1 {[%emt 0:00:27]} Bf5 {[%emt 0:05:11]} 28. Bxf5 {
[%emt 0:01:39]} gxf5 {[%emt 0:00:09]} 29. exd6 {[%emt 0:05:56]} Qxd6 {[%emt 0:
00:00]} 30. Re5 {[%emt 0:00:19]} Ng3 {[%emt 0:02:27]} 31. Rce1 {[%emt 0:00:44]}
Qd7 {[%emt 0:01:37]} 32. Nd2 {[%emt 0:02:24]} Re6 {[%emt 0:03:15]} 33. Kh2 {
[%emt 0:03:41]} Rxe5 {[%emt 0:02:02]} 34. fxe5 {[%emt 0:00:37]} Nh5 {[%emt 0:
00:00]} 35. Nc4 {[%emt 0:00:34]} Re8 {[%emt 0:01:39]} 36. Nb6 {[%emt 0:00:35]}
Qd8 {[%emt 0:00:33]} 37. d6 {[%emt 0:00:32]} f4 {[%emt 0:00:07]} 38. d7 {
[%emt 0:01:03]} Rf8 {[%emt 0:02:48]} 39. Rd1 {[%emt 0:00:56]} Ng7 {[%emt 0:00:
00]} 40. Nd5 {[%emt 0:00:37]} Ne6 {[%emt 0:00:21]} 41. Qe4 {[%emt 0:31:04]} Qh4
{[%emt 0:32:23]} 42. Nxf4 {[%emt 0:01:46]} Nxf4 {[%emt 0:00:00]} 43. Rd4 {
[%emt 0:00:00]} Rd8 {[%emt 0:00:00]} 44. Qf5 {[%emt 0:00:00]} Qe7 {[%emt 0:00:
00]} 45. Qxf4 {[%emt 0:00:00]} h5 {[%emt 0:00:00]} 46. Qf5 {[%emt 0:00:00]} h4
{[%emt 0:00:00]} 47. Qh5 {[%emt 0:00:00]} 1-0

[Event "44th Chess Olympiad Open 2022"]
[Site "Chennai"]
[Date "2022.07.30"]
[Round "2.75"]
[White "Nevska, Gerda"]
[Black "Attalib, Osama A."]
[Result "1-0"]
[WhiteElo "1840"]
[BlackElo "2033"]
[Annotator "NA RC"]
[PlyCount "81"]
[EventDate "2022.??.??"]
[TimeControl "60"]

1. c4 {[%emt 0:00:11]} Nf6 {[%emt 0:00:16]} 2. Nc3 {[%emt 0:00:41]} e6 {
[%emt 0:00:12]} 3. g3 {[%emt 0:02:25]} d5 {[%emt 0:02:01]} 4. d4 {[%emt 0:00:
00]} c6 {[%emt 0:02:27]} 5. cxd5 {[%emt 0:05:59]} exd5 {[%emt 0:00:23]} 6. Bg2
{[%emt 0:00:13]} Bd6 {[%emt 0:02:34]} 7. Nh3 {[%emt 0:01:28]} O-O {[%emt 0:00:
00]} 8. O-O {[%emt 0:03:12]} Re8 {[%emt 0:00:37]} 9. Bg5 {[%emt 0:01:59]} h6 {
[%emt 0:00:36]} 10. Bxf6 {[%emt 0:00:21]} Qxf6 {[%emt 0:00:08]} 11. Re1 {
[%emt 0:02:38]} Bb4 {[%emt 0:15:14]} 12. Rc1 {[%emt 0:01:12]} Nd7 {[%emt 0:00:
00]} 13. e4 {[%emt 0:04:51]} dxe4 {[%emt 0:09:56]} 14. Rxe4 {[%emt 0:08:51]}
Rxe4 {[%emt 0:01:38]} 15. Nxe4 {[%emt 0:00:13]} Qf5 {[%emt 0:03:01]} 16. a3 {
[%emt 0:06:39]} Bf8 {[%emt 0:00:16]} 17. Nf4 {[%emt 0:00:23]} Nb6 {[%emt 0:00:
00]} 18. Nc5 {[%emt 0:04:27]} Bd6 {[%emt 0:17:27]} 19. Ncd3 {[%emt 0:05:17]} g5
{[%emt 0:07:44]} 20. Bh3 {[%emt 0:08:38]} Qf6 {[%emt 0:04:56]} 21. Nh5 {
[%emt 0:05:07]} Qxd4 {[%emt 0:01:18]} 22. Bxc8 {[%emt 0:00:44]} Rxc8 {[%emt 0:
00:00]} 23. Qf3 {[%emt 0:00:55]} Nd5 {[%emt 0:04:35]} 24. Rd1 {[%emt 0:01:10]}
Qh8 {[%emt 0:09:27]} 25. Qf5 {[%emt 0:02:10]} Rd8 {[%emt 0:00:00]} 26. h4 {
[%emt 0:00:16]} gxh4 {[%emt 0:02:50]} 27. gxh4 {[%emt 0:14:11]} Qd4 {[%emt 0:
00:00]} 28. Kg2 {[%emt 0:04:25]} Kh8 {[%emt 0:07:06]} 29. Re1 {[%emt 0:04:03]}
Qxh4 {[%emt 0:00:54]} 30. Qxf7 {[%emt 0:00:42]} Qg4+ {[%emt 0:02:47]} 31. Kf1 {
[%emt 0:00:14]} Rf8 {[%emt 0:00:45]} 32. Re8 {[%emt 0:00:40]} Qg8 {[%emt 0:00:
00]} 33. Ne5 {[%emt 0:04:46]} Rxf7 {[%emt 0:00:32]} 34. Nxf7+ {[%emt 0:00:21]}
Kh7 {[%emt 0:00:11]} 35. Rxg8 {[%emt 0:00:07]} Kxg8 {[%emt 0:00:17]} 36. Nxd6 {
[%emt 0:00:06]} b6 {[%emt 0:00:15]} 37. Ke2 {[%emt 0:00:25]} Kf8 {[%emt 0:00:
00]} 38. Nf5 {[%emt 0:00:00]} a5 {[%emt 0:00:39]} 39. Nxh6 {[%emt 0:00:00]} Ke7
{[%emt 0:00:43]} 40. Kd3 {[%emt 0:00:21]} b5 {[%emt 0:00:00]} 41. Ke4 {[%emt 0:
00:00]} 1-0

[Event "44th Chess Olympiad Open 2022"]
[Site "Chennai"]
[Date "2022.07.30"]
[Round "2.75"]
[White "Morgan, Jamie"]
[Black "Fates, Omer Salah"]
[Result "0-1"]
[WhiteElo "1753"]
[BlackElo "1940"]
[Annotator "NA RC"]
[PlyCount "70"]
[EventDate "2022.??.??"]
[TimeControl "60"]

1. e4 {[%emt 0:00:06]} e6 {[%emt 0:00:06]} 2. d4 {[%emt 0:00:17]} d5 {[%emt 0:
00:00]} 3. exd5 {[%emt 0:00:16]} exd5 {[%emt 0:00:07]} 4. Nf3 {[%emt 0:00:13]}
Nf6 {[%emt 0:00:09]} 5. Bd3 {[%emt 0:00:34]} Bd6 {[%emt 0:00:11]} 6. Qe2+ {
[%emt 0:00:23]} Be7 {[%emt 0:00:10]} 7. O-O {[%emt 0:02:16]} O-O {[%emt 0:00:
00]} 8. Bg5 {[%emt 0:11:38]} Be6 {[%emt 0:02:52]} 9. c3 {[%emt 0:01:13]} c5 {
[%emt 0:02:08]} 10. Qc2 {[%emt 0:10:36]} h6 {[%emt 0:00:56]} 11. Bxf6 {[%emt 0:
00:00]} Bxf6 {[%emt 0:00:05]} 12. dxc5 {[%emt 0:01:03]} Nd7 {[%emt 0:01:21]}
13. Nbd2 {[%emt 0:04:18]} Nxc5 {[%emt 0:00:54]} 14. Bh7+ {[%emt 0:04:51]} Kh8 {
[%emt 0:00:07]} 15. Bf5 {[%emt 0:00:36]} Rc8 {[%emt 0:01:28]} 16. Bxe6 {
[%emt 0:07:37]} Nxe6 {[%emt 0:00:17]} 17. Rad1 {[%emt 0:05:39]} Qb6 {[%emt 0:
00:00]} 18. Qb3 {[%emt 0:05:33]} Qc6 {[%emt 0:01:07]} 19. Qb4 {[%emt 0:06:16]}
a5 {[%emt 0:04:31]} 20. Qg4 {[%emt 0:02:21]} a4 {[%emt 0:03:13]} 21. Nb1 {
[%emt 0:04:31]} Qb5 {[%emt 0:02:28]} 22. Rd2 {[%emt 0:02:24]} Rfd8 {[%emt 0:00:
00]} 23. Rfd1 {[%emt 0:01:36]} Rc7 {[%emt 0:02:06]} 24. Na3 {[%emt 0:01:18]}
Qc6 {[%emt 0:00:46]} 25. Nc2 {[%emt 0:00:39]} Rcd7 {[%emt 0:04:27]} 26. Ncd4 {
[%emt 0:02:09]} Nxd4 {[%emt 0:01:54]} 27. Nxd4 {[%emt 0:00:22]} Qc4 {[%emt 0:
00:00]} 28. a3 {[%emt 0:02:03]} Re7 {[%emt 0:00:48]} 29. h3 {[%emt 0:02:46]}
Rde8 {[%emt 0:02:56]} 30. Nf5 {[%emt 0:03:07]} Re1+ {[%emt 0:00:30]} 31. Kh2 {
[%emt 0:01:03]} Qf1 {[%emt 0:02:31]} 32. Rxd5 {[%emt 0:00:34]} Qxf2 {[%emt 0:
00:00]} 33. h4 {[%emt 0:04:16]} R8e4 {[%emt 0:08:00]} 34. Qh3 {[%emt 0:06:54]}
Qg1+ {[%emt 0:02:14]} 35. Kg3 {[%emt 0:00:05]} Rxd1 {[%emt 0:00:20]} 0-1

[Event "44th Chess Olympiad Open 2022"]
[Site "Chennai"]
[Date "2022.07.30"]
[Round "2.76"]
[White "Ortega Amarelle, Mariano"]
[Black "Jaiswal Prashant S"]
[Result "1-0"]
[WhiteElo "2463"]
[BlackElo "1683"]
[Annotator "TA"]
[PlyCount "54"]
[EventDate "2022.??.??"]
[TimeControl "60"]

{[%evp 17,54,8,16,0,0,0,0,0,8,0,4,12,13,0,63,60,68,44,119,109,247,150,210,102,
243,235,581,567,556,542,537,370,357,358,29999,-379,1858,0,310]} 1. c4 {[%emt 0:
00:00]} Nf6 {[%emt 0:00:30]} 2. Nc3 {[%emt 0:01:04]} c5 {[%emt 0:02:19]} 3. Nf3
{[%emt 0:00:10]} Nc6 {[%emt 0:00:07]} 4. e3 {[%emt 0:00:48]} e6 {[%emt 0:02:06]
} 5. d4 {[%emt 0:01:53]} cxd4 {[%emt 0:01:08]} 6. exd4 {[%emt 0:00:06]} d5 {
[%emt 0:03:24]} 7. cxd5 {[%emt 0:00:12]} exd5 {[%emt 0:01:25]} 8. Bd3 {[%emt 0:
00:00]} Bd6 {[%emt 0:00:56]} 9. O-O {[%emt 0:01:15]} O-O {[%emt 0:01:24]} 10.
h3 {[%emt 0:02:46] Inhibits Bg4. B14: Caro-Kann: Panov-Botvinnik Attack with 5.
..e6 and 5...g6.} h6 {[%emt 0:01:01]} 11. Re1 {[%emt 0:01:31]} Re8 {[%emt 0:00:
00]} 12. Rxe8+ {[%emt 0:00:24]} Qxe8 {[%emt 0:00:09]} 13. a3 {[%emt 0:00:10]}
a6 {[%emt 0:00:07] [#]} 14. Na4 $146 {[%emt 0:06:19]} ({Predecessor:} 14. b4
Bd7 15. Bb2 Rc8 16. Qb3 Ne7 17. Re1 Bc6 18. Ne5 Bxe5 19. Rxe5 Qd7 20. Qd1 {
1-0 (58) Sakic,M (2163)-Dalle,N Durham 2007}) 14... Be6 {[%emt 0:04:31]} 15.
Be3 {[%emt 0:13:21]} b5 {[%emt 0:03:56]} (15... Rc8 $11) 16. Nc5 $14 {[%emt 0:
00:00]} Nd7 {[%emt 0:02:09][%cal Yc6d4]} 17. Rc1 {[%emt 0:08:08] [#] Strongly
threatening Nb7.} Nd8 {[%emt 0:06:03] Prevents Nb7.} (17... Na5 $14) 18. Qd2 {
[%emt 0:09:35][%cal Ye3h6] White is much more active.} Nb6 {[%emt 0:03:09]} (
18... Qf8 $16 19. Bb1 Nf6) 19. b3 {[%emt 0:01:31][%cal Ye3h6]} Bd7 {[%emt 0:00:
00] [#]} (19... Bf8 $16 20. Qc3 Nd7) 20. Bf4 {[%emt 0:17:46]} (20. Bxh6 $1 $18
{has better winning chances.} Ne6 21. Be3) 20... Be7 {[%emt 0:23:58]} (20...
Qf8 $16) 21. Bxh6 $18 {[%emt 0:11:05]} g6 $2 {[%emt 0:15:39]} (21... Ne6 {
is tougher.} 22. Bf4 Bf6) 22. Qf4 {[%emt 0:06:58]} Ne6 {[%emt 0:01:14]} 23.
Nxe6 {[%emt 0:00:17]} Bxe6 {[%emt 0:00:19]} 24. Qe5 {[%emt 0:01:33][%csl Gh6]
[%cal Re5g7]} Bf8 {[%emt 0:00:21] Against Qg7+} 25. Bxf8 {[%emt 0:00:25][%csl
Gf8][%cal Re5g7]} Nd7 $2 {[%emt 0:02:21]} (25... Qxf8 $18 26. Bxg6 Qg7) 26. Bg7
$4 {[%emt 0:01:19]} Nb6 $4 {[%emt 0:00:02]} (26... Nxe5 $19 27. Bxe5 Rc8) 27.
Bf8 $2 Qxf8 $4 {[%emt 0:00:01] Weighted Error Value: White=0.83/Black=0.91} (
27... Nd7 $1 $11 28. Qg7#) 1-0

[Event "44th Chess Olympiad Open 2022"]
[Site "Chennai"]
[Date "2022.07.30"]
[Round "2.76"]
[White "Mirulla, David"]
[Black "Prasad, Rudr"]
[Result "1-0"]
[WhiteElo "1953"]
[BlackElo "1566"]
[Annotator "NA"]
[PlyCount "93"]
[EventDate "2022.??.??"]
[TimeControl "60"]

1. e4 {[%emt 0:00:04]} c6 {[%emt 0:00:03]} 2. d4 {[%emt 0:00:09]} d5 {[%emt 0:
00:00]} 3. exd5 {[%emt 0:00:12]} cxd5 {[%emt 0:00:04]} 4. Bd3 {[%emt 0:00:11]}
Nc6 {[%emt 0:00:07]} 5. c3 {[%emt 0:00:13]} Qc7 {[%emt 0:00:34]} 6. h3 {
[%emt 0:09:58]} Nf6 {[%emt 0:02:26]} 7. Nf3 {[%emt 0:00:48]} e5 {[%emt 0:03:25]
} 8. dxe5 {[%emt 0:01:37]} Nxe5 {[%emt 0:00:31]} 9. Qe2 {[%emt 0:00:55]} Ne4 {
[%emt 0:04:43]} 10. Bxe4 {[%emt 0:05:10]} dxe4 {[%emt 0:00:04]} 11. Qxe4 {
[%emt 0:00:23]} f6 {[%emt 0:00:32]} 12. Bf4 {[%emt 0:05:39]} Bd6 {[%emt 0:00:
00]} 13. Bxe5 {[%emt 0:05:51]} fxe5 {[%emt 0:00:59]} 14. Nbd2 {[%emt 0:03:27]}
O-O {[%emt 0:01:26]} 15. Qc4+ {[%emt 0:01:42]} Kh8 {[%emt 0:04:56]} 16. Qxc7 {
[%emt 0:08:42]} Bxc7 {[%emt 0:00:17]} 17. O-O {[%emt 0:01:30]} Bf5 {[%emt 0:00:
00]} 18. Ng5 {[%emt 0:07:58]} Rad8 {[%emt 0:02:11]} 19. Nge4 {[%emt 0:07:58]}
Rd3 {[%emt 0:06:28]} 20. f3 {[%emt 0:04:17]} Rfd8 {[%emt 0:21:12]} 21. Nb3 {
[%emt 0:00:55]} Re3 {[%emt 0:09:49]} 22. Rfe1 {[%emt 0:05:55]} Bxe4 {[%emt 0:
00:00]} 23. fxe4 {[%emt 0:01:04]} Rxe1+ {[%emt 0:01:48]} 24. Rxe1 {[%emt 0:00:
00]} Bb6+ {[%emt 0:00:09]} 25. Kh2 {[%emt 0:00:40]} Rf8 {[%emt 0:00:39]} 26.
Re2 {[%emt 0:00:32]} h5 {[%emt 0:01:29]} 27. Nd2 {[%emt 0:04:39]} g5 {[%emt 0:
00:00]} 28. g3 {[%emt 0:07:50]} g4 {[%emt 0:01:38]} 29. hxg4 {[%emt 0:02:25]}
hxg4 {[%emt 0:00:05]} 30. Kg2 {[%emt 0:00:14]} Rc8 {[%emt 0:02:10]} 31. Nf1 {
[%emt 0:00:47]} Rd8 {[%emt 0:01:13]} 32. Rd2 {[%emt 0:00:30]} Rxd2+ {[%emt 0:
00:00]} 33. Nxd2 {[%emt 0:00:14]} Kg7 {[%emt 0:00:12]} 34. Nc4 {[%emt 0:00:18]}
Kf6 {[%emt 0:01:26]} 35. Nxb6 {[%emt 0:00:15]} axb6 {[%emt 0:00:12]} 36. Kf2 {
[%emt 0:00:14]} Ke6 {[%emt 0:00:02]} 37. Ke3 {[%emt 0:00:22]} Kd6 {[%emt 0:00:
00]} 38. Kd3 {[%emt 0:00:23]} b5 {[%emt 0:01:19]} 39. b3 {[%emt 0:00:42]} Kc6 {
[%emt 0:06:59]} 40. a3 {[%emt 0:03:27]} Kd6 {[%emt 0:03:22]} 41. c4 {[%emt 0:
00:00]} Kc6 {[%emt 0:31:26]} 42. cxb5+ {[%emt 0:00:35]} Kc5 {[%emt 0:00:59]}
43. Kc3 {[%emt 0:02:30]} Kxb5 {[%emt 0:00:00]} 44. a4+ {[%emt 0:00:00]} Ka5 {
[%emt 0:00:00]} 45. Kc4 {[%emt 0:00:00]} b6 {[%emt 0:00:00]} 46. Kc3 {[%emt 0:
00:00]} Ka6 {[%emt 0:00:00]} 47. Kb4 {[%emt 0:00:00]} 1-0

[Event "44th Chess Olympiad Open 2022"]
[Site "Chennai"]
[Date "2022.07.30"]
[Round "2.76"]
[White "Terubea, Ronald"]
[Black "Teixeira, Gil"]
[Result "0-1"]
[WhiteElo "1742"]
[BlackElo "1741"]
[Annotator "NA"]
[PlyCount "84"]
[EventDate "2022.??.??"]
[TimeControl "60"]

1. e4 {[%emt 0:00:32]} e6 {[%emt 0:00:17]} 2. Nc3 {[%emt 0:00:56]} Be7 {
[%emt 0:00:31]} 3. Nf3 {[%emt 0:01:02]} Nf6 {[%emt 0:00:15]} 4. d4 {[%emt 0:00:
00]} d6 {[%emt 0:00:07]} 5. Bg5 {[%emt 0:02:11]} O-O {[%emt 0:00:47]} 6. Bd3 {
[%emt 0:01:29]} Nbd7 {[%emt 0:00:12]} 7. Qd2 {[%emt 0:01:22]} c6 {[%emt 0:00:
00]} 8. h4 {[%emt 0:02:15]} e5 {[%emt 0:00:38]} 9. h5 {[%emt 0:01:47]} b5 {
[%emt 0:00:37]} 10. Be3 {[%emt 0:04:42]} a5 {[%emt 0:00:15]} 11. dxe5 {[%emt 0:
00:00]} dxe5 {[%emt 0:00:08]} 12. O-O-O {[%emt 0:01:51]} a4 {[%emt 0:01:29]}
13. Nb1 {[%emt 0:03:26]} Qc7 {[%emt 0:00:15]} 14. Rdg1 {[%emt 0:05:10]} Nc5 {
[%emt 0:00:40]} 15. Bxc5 {[%emt 0:04:52]} Bxc5 {[%emt 0:00:17]} 16. h6 {
[%emt 0:08:01]} g6 {[%emt 0:00:35]} 17. Rf1 {[%emt 0:08:37]} Rd8 {[%emt 0:00:
00]} 18. Qc3 {[%emt 0:01:48]} Bd6 {[%emt 0:05:17]} 19. a3 {[%emt 0:01:31]} Rb8
{[%emt 0:01:54]} 20. Nbd2 {[%emt 0:04:02]} c5 {[%emt 0:00:27]} 21. Rh4 {
[%emt 0:08:56]} b4 {[%emt 0:00:49]} 22. axb4 {[%emt 0:01:03]} cxb4 {[%emt 0:00:
00]} 23. Qxc7 {[%emt 0:00:57]} Bxc7 {[%emt 0:00:21]} 24. Nc4 {[%emt 0:00:46]}
Nd7 {[%emt 0:05:30]} 25. Kd2 {[%emt 0:01:36]} Ba6 {[%emt 0:00:35]} 26. Ke2 {
[%emt 0:01:50]} Nc5 {[%emt 0:00:27]} 27. Rd1 {[%emt 0:02:20]} Nxd3 {[%emt 0:00:
00]} 28. cxd3 {[%emt 0:00:46]} Bxc4 {[%emt 0:02:00]} 29. dxc4 {[%emt 0:01:36]}
Rxd1 {[%emt 0:01:18]} 30. Kxd1 {[%emt 0:00:08]} a3 {[%emt 0:00:08]} 31. Kc2 {
[%emt 0:03:44]} a2 {[%emt 0:02:19]} 32. Rh1 {[%emt 0:00:48]} b3+ {[%emt 0:00:
00]} 33. Kd3 {[%emt 0:00:34]} f6 {[%emt 0:00:22]} 34. c5 {[%emt 0:01:57]} Ba5 {
[%emt 0:01:28]} 35. Rc1 {[%emt 0:01:58]} Kf7 {[%emt 0:00:49]} 36. Nh2 {[%emt 0:
00:00]} Rb4 {[%emt 0:00:25]} 37. c6 {[%emt 0:03:16]} Rd4+ {[%emt 0:00:36]} 38.
Ke2 {[%emt 0:03:15]} Rc4 {[%emt 0:00:12]} 39. Rxc4 {[%emt 0:00:06]} a1=Q {
[%emt 0:00:44]} 40. c7 {[%emt 0:01:01]} Qe1+ {[%emt 0:04:34]} 41. Kf3 {[%emt 0:
00:00]} Qd1+ {[%emt 0:30:22]} 42. Kg3 {[%emt 0:04:41]} Qd3+ {[%emt 0:01:08]}
0-1

[Event "44th Chess Olympiad Open 2022"]
[Site "Chennai"]
[Date "2022.07.30"]
[Round "2.76"]
[White "Prakash, Prashil"]
[Black "Rodriguez Guevara, Celia M."]
[Result "*"]
[WhiteElo "1514"]
[BlackElo "1859"]
[Annotator "NA RC"]
[PlyCount "114"]
[EventDate "2022.??.??"]
[TimeControl "60"]

1. d4 {[%emt 0:00:43]} d5 {[%emt 0:00:07]} 2. Nf3 {[%emt 0:00:58]} Nf6 {
[%emt 0:01:15]} 3. c3 {[%emt 0:00:26]} Bf5 {[%emt 0:02:39]} 4. e3 {[%emt 0:00:
00]} e6 {[%emt 0:02:01]} 5. Bd3 {[%emt 0:02:41]} Bxd3 {[%emt 0:06:18]} 6. Qxd3
{[%emt 0:00:53]} c6 {[%emt 0:00:21]} 7. Nbd2 {[%emt 0:03:20]} Nbd7 {[%emt 0:00:
00]} 8. O-O {[%emt 0:05:43]} Bd6 {[%emt 0:00:48]} 9. e4 {[%emt 0:08:28]} dxe4 {
[%emt 0:01:04]} 10. Nxe4 {[%emt 0:00:24]} Nxe4 {[%emt 0:00:55]} 11. Qxe4 {
[%emt 0:01:18]} Nf6 {[%emt 0:01:10]} 12. Qc2 {[%emt 0:02:17]} h6 {[%emt 0:00:
00]} 13. Re1 {[%emt 0:00:34]} O-O {[%emt 0:00:29]} 14. Ne5 {[%emt 0:01:17]} Qc7
{[%emt 0:10:37]} 15. h3 {[%emt 0:04:47]} c5 {[%emt 0:01:42]} 16. Qd3 {[%emt 0:
00:00]} cxd4 {[%emt 0:05:09]} 17. cxd4 {[%emt 0:11:30]} Nd5 {[%emt 0:08:12]}
18. Bd2 {[%emt 0:06:06]} Rac8 {[%emt 0:12:42]} 19. Rac1 {[%emt 0:01:49]} Qe7 {
[%emt 0:03:06]} 20. a3 {[%emt 0:00:29]} Nf6 {[%emt 0:12:51]} 21. Qg3 {[%emt 0:
00:00]} Rxc1 {[%emt 0:07:17]} 22. Rxc1 {[%emt 0:01:03]} Ne4 {[%emt 0:02:02]}
23. Qd3 {[%emt 0:02:57]} Nxd2 {[%emt 0:01:07]} 24. Qxd2 {[%emt 0:00:27]} Rd8 {
[%emt 0:01:17]} 25. Qe3 {[%emt 0:02:14]} Qf6 {[%emt 0:03:47]} 26. Qe4 {[%emt 0:
00:00]} Qg5 {[%emt 0:02:18]} 27. Rc2 {[%emt 0:01:06]} Qe7 {[%emt 0:05:23]} 28.
Rc3 {[%emt 0:02:48]} Bxe5 {[%emt 0:01:23]} 29. Qxe5 {[%emt 0:04:09]} f6 {
[%emt 0:01:28]} 30. Qg3 {[%emt 0:06:40]} Rxd4 {[%emt 0:01:08]} 31. Rc7 {
[%emt 0:03:49]} Rd7 {[%emt 0:00:31]} 32. Rxd7 {[%emt 0:01:28]} Qxd7 {[%emt 0:
00:00]} 33. Qb8+ {[%emt 0:00:12]} Kh7 {[%emt 0:00:02]} 34. Qxa7 {[%emt 0:00:26]
} Qc7 {[%emt 0:00:17]} 35. Qe3 {[%emt 0:00:54]} Qd6 {[%emt 0:01:36]} 36. Qe4+ {
[%emt 0:01:17]} f5 {[%emt 0:00:53]} 37. Qxb7 {[%emt 0:00:12]} Qd1+ {[%emt 0:00:
00]} 38. Kh2 {[%emt 0:00:48]} Qe2 {[%emt 0:00:32]} 39. Qb6 {[%emt 0:00:44]}
Qe5+ {[%emt 0:00:20]} 40. Kg1 {[%emt 0:00:54]} Qe1+ {[%emt 0:00:12]} 41. Kh2 {
[%emt 0:30:16]} Qe5+ {[%emt 0:30:01]} 42. Kh1 {[%emt 0:00:55]} Qe1+ {[%emt 0:
00:00]} 43. Kh2 {[%emt 0:01:21]} Qe5+ {[%emt 0:00:15]} 44. g3 {[%emt 0:00:00]}
f4 {[%emt 0:00:00]} 45. gxf4 {[%emt 0:00:00]} Qxf4+ {[%emt 0:00:40]} 46. Kg2 {
[%emt 0:00:00]} Qg5+ {[%emt 0:00:00]} 47. Kf1 {[%emt 0:00:00]} Qf5 {[%emt 0:00:
00]} 48. Qb3 {[%emt 0:00:48]} Qb1+ {[%emt 0:00:00]} 49. Ke2 {[%emt 0:00:00]}
Qe4+ {[%emt 0:00:00]} 50. Qe3 {[%emt 0:00:00]} Qc2+ {[%emt 0:00:00]} 51. Qd2 {
[%emt 0:00:17]} Qe4+ {[%emt 0:00:06]} 52. Kd1 {[%emt 0:00:00]} Qb1+ {[%emt 0:
00:00]} 53. Qc1 {[%emt 0:03:12]} Qd3+ {[%emt 0:00:00]} 54. Qd2 {[%emt 0:00:00]}
Qb1+ {[%emt 0:00:00]} 55. Ke2 {[%emt 0:00:00]} Qe4+ {[%emt 0:00:00]} 56. Qe3 {
[%emt 0:00:00]} Qc2+ {[%emt 0:06:24]} 57. Qd2 {[%emt 0:00:00]} Qe4+ {[%emt 0:
00:00]} *

[Event "44th Chess Olympiad Open 2022"]
[Site "Chennai"]
[Date "2022.07.30"]
[Round "2.77"]
[White "Edwards, Emar"]
[Black "Young, Christopher"]
[Result "1/2-1/2"]
[WhiteElo "1695"]
[BlackElo "1990"]
[Annotator "NA RC"]
[PlyCount "120"]
[EventDate "2022.??.??"]
[TimeControl "60"]

1. e4 {[%emt 0:00:07]} c5 {[%emt 0:00:04]} 2. Nc3 {[%emt 0:00:05]} e6 {[%emt 0:
00:00]} 3. Nge2 {[%emt 0:00:38]} a6 {[%emt 0:00:34]} 4. g3 {[%emt 0:00:05]} Nc6
{[%emt 0:00:25]} 5. Bg2 {[%emt 0:00:11]} g6 {[%emt 0:01:16]} 6. d4 {[%emt 0:00:
00]} cxd4 {[%emt 0:00:11]} 7. Nxd4 {[%emt 0:00:13]} Bg7 {[%emt 0:00:20]} 8. Be3
{[%emt 0:01:06]} Nge7 {[%emt 0:02:34]} 9. Qd2 {[%emt 0:01:17]} Ne5 {[%emt 0:00:
00]} 10. O-O {[%emt 0:13:29]} O-O {[%emt 0:02:29]} 11. Rad1 {[%emt 0:07:25]}
Nc4 {[%emt 0:23:06]} 12. Qc1 {[%emt 0:00:15]} Qc7 {[%emt 0:02:55]} 13. Rfe1 {
[%emt 0:10:38]} Rb8 {[%emt 0:12:28]} 14. a4 {[%emt 0:11:56]} b6 {[%emt 0:11:57]
} 15. Nde2 {[%emt 0:00:27]} Nxe3 {[%emt 0:02:36]} 16. Qxe3 {[%emt 0:00:15]} b5
{[%emt 0:01:14]} 17. axb5 {[%emt 0:01:58]} axb5 {[%emt 0:00:04]} 18. Ra1 {
[%emt 0:12:12]} b4 {[%emt 0:05:40]} 19. Ra7 {[%emt 0:03:02]} Qb6 {[%emt 0:00:
00]} 20. Qxb6 {[%emt 0:02:55]} Rxb6 {[%emt 0:00:01]} 21. Na4 {[%emt 0:14:35]}
Ra6 {[%emt 0:03:01]} 22. Rxa6 {[%emt 0:00:15]} Bxa6 {[%emt 0:00:02]} 23. Nc5 {
[%emt 0:01:09]} Bb5 {[%emt 0:01:10]} 24. c4 {[%emt 0:07:34]} Bxc4 {[%emt 0:00:
00]} 25. Nxd7 {[%emt 0:00:13]} Rd8 {[%emt 0:01:03]} 26. Nb6 {[%emt 0:03:08]}
Bb3 {[%emt 0:04:11]} 27. Nc1 {[%emt 0:01:32]} Bc2 {[%emt 0:01:36]} 28. b3 {
[%emt 0:03:34]} Bc3 {[%emt 0:01:24]} 29. Rf1 {[%emt 0:00:08]} Nc6 {[%emt 0:00:
00]} 30. Na4 {[%emt 0:00:39]} Bd2 {[%emt 0:00:21]} 31. Bf3 {[%emt 0:01:57]} Nd4
{[%emt 0:00:41]} 32. Kg2 {[%emt 0:01:01]} Bxb3 {[%emt 0:01:25]} 33. Nxb3 {
[%emt 0:00:15]} Nxb3 {[%emt 0:00:01]} 34. Rd1 {[%emt 0:00:39]} Rd4 {[%emt 0:00:
00]} 35. Nb2 {[%emt 0:00:44]} Bc3 {[%emt 0:00:16]} 36. Rxd4 {[%emt 0:00:19]}
Nxd4 {[%emt 0:00:21]} 37. Nd1 {[%emt 0:00:43]} Bd2 {[%emt 0:00:26]} 38. h4 {
[%emt 0:00:39]} b3 {[%emt 0:00:15]} 39. e5 {[%emt 0:00:25]} Bc1 {[%emt 0:01:06]
} 40. Be4 {[%emt 0:00:15]} b2 {[%emt 0:00:44]} 41. Nc3 {[%emt 0:30:10]} Kf8 {
[%emt 0:12:52]} 42. Kf1 {[%emt 0:00:00]} Ke7 {[%emt 0:01:22]} 43. Ke1 {[%emt 0:
00:00]} Nb3 {[%emt 0:03:17]} 44. Kd1 {[%emt 0:00:00]} Nd2 {[%emt 0:00:52]} 45.
Bh1 {[%emt 0:00:00]} Nc4 {[%emt 0:01:41]} 46. f4 {[%emt 0:01:40]} Ne3+ {
[%emt 0:00:51]} 47. Ke2 {[%emt 0:00:17]} Nf5 {[%emt 0:00:48]} 48. Kf2 {[%emt 0:
00:00]} Bd2 {[%emt 0:04:51]} 49. Nb1 {[%emt 0:00:09]} Bb4 {[%emt 0:00:21]} 50.
Be4 {[%emt 0:00:41]} h5 {[%emt 0:02:55]} 51. Bd3 {[%emt 0:00:41]} Bc5+ {
[%emt 0:02:06]} 52. Kg2 {[%emt 0:00:59]} Bb4 {[%emt 0:00:21]} 53. Kf2 {[%emt 0:
00:00]} Bc5+ {[%emt 0:01:19]} 54. Kg2 {[%emt 0:00:07]} Nd4 {[%emt 0:01:42]} 55.
Nc3 {[%emt 0:00:24]} Bb4 {[%emt 0:01:26]} 56. Nd1 {[%emt 0:00:40]} Ba3 {
[%emt 0:00:26]} 57. Kf2 {[%emt 0:00:58]} Nf5 {[%emt 0:00:46]} 58. Kg2 {[%emt 0:
00:00]} Kd7 {[%emt 0:00:47]} 59. Bb5+ {[%emt 0:00:25]} Kc7 {[%emt 0:00:17]} 60.
Bd3 {[%emt 0:01:11]} Kb6 {[%emt 0:02:03]} 1/2-1/2